bitfinex/quotes_ETHUSD_20250210
["timestamp","ask_amount","ask_price","bid_price","bid_amount"]
[1739223228725,3.74767,2668.4,2667.9,4.51355]
[1739223229720,3.74767,2668.4,2667.9,0.7653]
[1739223230242,3.74763,2668.4,2667.9,0.7653]
[1739223230416,3.74763,2668.4,2667.9,4.51346]
[1739223231725,3.74763,2668.4,2667.9,0.7653]
[1739223231940,3.74763,2668.4,2667.9,4.51356]
[1739223232149,7.49527,2668.4,2667.9,4.51356]
[1739223232299,0.3106,2668.4,2667.5,0.817]
[1739223232495,3.74836,2667.9,2667.5,0.817]
[1739223233911,3.74804,2668.1,2667.6,3.74864]
[1739223234114,3.74804,2668.1,2667.5,0.817]
[1739223234343,3.74804,2668.1,2667.5,4.5657]
[1739223234638,3.74808,2668.1,2667.5,4.5657]
[1739223234839,3.74808,2668.1,2667.6,3.74867]
[1739223235771,3.74808,2668.1,2667.5,0.817]
[1739223235926,3.74827,2667.9,2667.5,0.817]
[1739223236129,3.74827,2667.9,2667.4,3.74896]
[1739223236747,7.49665,2667.9,2667.4,3.74896]
[1739223236929,3.74842,2667.8,2667.4,3.74896]
[1739223237167,3.74853,2667.8,2667.3,4.56604]
[1739223237539,3.74853,2667.8,2667.3,8.31506]
[1739223237860,7.49666,2667.9,2667.4,3.74896]
[1739223238260,3.74827,2667.9,2667.4,3.74896]
[1739223238842,7.49662,2667.9,2667.4,3.74896]
[1739223239260,3.74843,2667.8,2667.4,3.74896]
[1739223239567,7.49664,2667.9,2667.4,3.74896]
[1739223239731,3.74827,2667.9,2667.4,3.74896]
[1739223240132,0.0075,2668.2,2667.3,0.817]
[1739223240425,3.74878,2667.6,2667.3,0.817]
[1739223241360,3.74915,2667.3,2667.1,0.005]
[1739223241798,3.74898,2667.4,2667.1,0.005]
[1739223242172,3.74871,2667.6,2667.1,0.005]
[1739223242464,3.7484,2667.8,2667.1,3.75428]
[1739223242654,3.7484,2667.8,2667.2,3.74912]
[1739223242851,0.3181,2668.2,2667.5,0.817]
[1739223243065,3.74846,2667.8,2667.5,0.817]
[1739223243266,3.74868,2667.6,2667.5,0.817]
[1739223243457,3.74866,2667.7,2667.5,0.817]
[1739223243859,3.74868,2667.6,2667.5,0.817]
[1739223244270,3.74866,2667.7,2667.5,0.817]
[1739223244674,3.74868,2667.6,2667.5,0.817]
[1739223244971,3.74868,2667.6,2667.2,0.7948]
[1739223245149,3.74925,2667.2,2667.1,0.005]
[1739223245350,7.49812,2667.4,2667.1,0.005]
[1739223245579,3.74902,2667.4,2667.1,0.005]
[1739223245787,3.74915,2667.3,2667.1,0.005]
[1739223246544,3.74899,2667.4,2667.1,0.005]
[1739223246743,3.74903,2667.4,2667.1,0.005]
[1739223247367,3.74925,2667.2,2667.1,0.005]
[1739223247774,3.74903,2667.4,2667.1,0.005]
[1739223248042,3.74869,2667.6,2667.1,0.005]
[1739223248245,3.74887,2667.5,2667.1,0.005]
[1739223250173,3.74848,2667.8,2667.4,0.7516]
[1739223250375,0.3106,2668.0,2667.5,3.74876]
[1739223250684,3.74801,2668.1,2667.6,3.74856]
[1739223250872,3.74801,2668.1,2667.6,4.5002]
[1739223251252,3.7477,2668.3,2667.7,3.74842]
[1739223251453,5.38879628,2668.5,2667.7,0.7516]
[1739223251672,5.38879628,2668.5,2668.1,3.74798]
[1739223251901,1.64134628,2668.5,2668.2,4.49932]
[1739223252071,1.64134628,2668.5,2668.3,3.7476]
[1739223252400,1.64134628,2668.5,2668.4,3.74756]
[1739223253066,1.64134628,2668.5,2668.3,3.7476]
[1739223253272,1.64134628,2668.5,2668.4,3.74756]
[1739223253889,1.64134628,2668.5,2668.3,3.74759]
[1739223256768,1.64134628,2668.5,2668.2,0.7516]
[1739223256992,1.64134628,2668.5,2668.3,3.7477]
[1739223257410,1.64134628,2668.5,2668.4,3.74756]
[1739223257565,1.64134628,2668.5,2668.3,3.7477]
[1739223258383,1.64134628,2668.5,2668.3,3.74763]
[1739223258817,1.64134628,2668.5,2668.4,3.74756]
[1739223259123,1.64134628,2668.5,2668.3,3.7476]
[1739223259630,1.64134628,2668.5,2668.2,4.49944]
[1739223260431,1.64134628,2668.5,2668.4,3.74756]
[1739223260921,1.64134628,2668.5,2668.3,3.74762]
[1739223263120,1.64134628,2668.5,2668.2,0.7516]
[1739223263321,1.64134628,2668.5,2668.3,3.74767]
[1739223264345,1.64134628,2668.5,2668.3,7.49529]
[1739223264540,1.64134628,2668.5,2668.3,7.49524]
[1739223264685,1.64134628,2668.5,2668.3,3.74762]
[1739223266001,1.64134628,2668.5,2668.2,0.7516]
[1739223266207,1.64134628,2668.5,2668.2,4.49941]
[1739223266440,1.64134628,2668.5,2668.3,3.74759]
[1739223268321,1.64134628,2668.5,2668.4,3.74756]
[1739223268491,1.64134628,2668.5,2668.3,3.74759]
[1739223268934,1.64134628,2668.5,2668.4,3.74756]
[1739223270038,1.64134628,2668.5,2668.3,3.74759]
[1739223270541,1.64134628,2668.5,2668.4,3.74756]
[1739223270846,1.64134628,2668.5,2668.3,3.74758]
[1739223271333,1.64134628,2668.5,2668.4,3.74756]
[1739223271498,1.64134628,2668.5,2668.3,3.74769]
[1739223271835,1.64134628,2668.5,2668.2,1.50377767]
[1739223272055,1.64134628,2668.5,2668.3,3.74758]
[1739223272366,1.64134628,2668.5,2668.4,3.74756]
[1739223273211,1.64134628,2668.5,2668.4,3.74587279]
[1739223273851,1.64134628,2668.5,2668.3,3.74768]
[1739223274149,1.64134628,2668.5,2668.4,3.74756]
[1739223278560,1.89174628,2668.5,2668.4,3.74756]
[1739223282973,1.88174628,2668.5,2668.4,3.74756]
[1739223287687,1.88174628,2668.5,2668.4,4.52856]
[1739223288089,6.28e-06,2668.5,2668.4,19.35185688]
[1739223288288,6.28e-06,2668.5,2668.4,18.80185688]
[1739223291421,6.28e-06,2668.5,2668.4,19.35185688]
[1739223300349,6.28e-06,2668.5,2668.4,16.28606]
[1739223301871,0.3106,2669.5,2669.1,3.74654]
[1739223302426,0.3106,2669.5,2668.9,0.7708]
[1739223302427,0.3106,2669.5,2669.4,3.74616]
[1739223303753,0.3106,2669.5,2669.2,3.74631]
[1739223303936,0.3106,2669.5,2669.2,7.49265]
[1739223304134,0.3106,2669.5,2669.3,3.74629]
[1739223304756,0.3106,2669.5,2669.1,4.49245185]
[1739223304927,0.3106,2669.5,2669.1,8.23894185]
[1739223305258,0.3106,2669.5,2669.1,4.49239185]
[1739223305456,0.3106,2669.5,2669.2,3.74638]
[1739223305661,0.3106,2669.5,2669.1,4.49239185]
[1739223305868,0.3106,2669.5,2669.2,3.74642]
[1739223306679,0.3106,2669.5,2669.4,3.74616]
[1739223318896,0.3106,2669.8,2669.7,3.74573]
[1739223319319,0.3106,2670.2,2669.4,0.8038]
[1739223319592,0.3106,2670.2,2670.0,3.74525]
[1739223319745,0.3106,2670.2,2669.8,3.74552]
[1739223319746,0.3106,2670.2,2669.8,7.491]
[1739223319944,0.3106,2670.2,2669.5,3.74601]
[1739223320144,0.3106,2670.2,2670.1,3.74517]
[1739223321355,0.3106,2670.2,2670.0,7.49058]
[1739223321561,0.3106,2670.2,2670.1,3.74517]
[1739223325891,0.3106,2670.2,2669.9,3.74545]
[1739223328963,0.3106,2670.2,2670.0,3.74529]
[1739223329396,0.3106,2670.2,2669.8,3.7455]
[1739223329772,0.3106,2670.2,2669.9,3.74539]
[1739223333117,0.3106,2670.2,2670.0,3.7453]
[1739223335314,0.3106,2670.2,2670.0,3.74522]
[1739223335483,0.3106,2670.2,2670.1,3.74517]
[1739223337412,0.3106,2670.2,2670.0,3.74529]
[1739223337413,0.3106,2670.2,2670.0,7.49052]
[1739223337618,0.3106,2670.2,2670.1,3.74517]
[1739223338516,0.3106,2670.2,2670.0,3.74523]
[1739223338720,0.3106,2670.2,2670.1,3.74517]
[1739223342497,0.3106,2670.2,2670.0,3.74524]
[1739223342703,0.3106,2670.2,2670.1,3.74517]
[1739223343105,0.3106,2670.4,2670.3,3.74489]
[1739223343623,0.3106,2670.7,2669.8,0.7698]
[1739223343788,5.3101319,2670.7,2670.2,3.74493]
[1739223343989,3.74449,2670.6,2670.2,3.74493]
[1739223344218,4.5657819,2670.7,2670.2,3.74493]
[1739223344623,1.5657819,2670.7,2669.8,0.7698]
[1739223344797,0.3106,2670.7,2670.6,3.74447]
[1739223345001,1.63286044,2670.8,2670.7,3.74433]
[1739223349424,1.63286044,2670.8,2670.6,8.27497]
[1739223350012,1.63286044,2670.8,2670.6,4.5305]
[1739223350334,1.63286044,2670.8,2670.7,3.74433]
[1739223352671,1.63286044,2670.8,2670.7,4.55203]
[1739223352873,1.63286044,2670.8,2670.7,7.55203]
[1739223361663,1.63286044,2670.8,2670.6,3.74446]
[1739223361864,1.63286044,2670.8,2670.7,3.74433]
[1739223363045,1.63286044,2670.8,2670.7,4.55203]
[1739223363768,1.63286044,2670.8,2670.7,7.55203]
[1739223366079,1.63286044,2670.8,2670.7,6.74433]
[1739223366435,1.63286044,2670.8,2670.7,3.74433]
[1739223368474,1.63286044,2670.8,2670.7,4.99851726]
[1739223369778,1.63286044,2670.8,2670.7,3.74433]
[1739223369980,1.63286044,2670.8,2670.6,3.74446]
[1739223370143,1.63286044,2670.8,2670.7,3.74433]
[1739223372655,1.63286044,2670.8,2670.7,4.99851726]
[1739223372859,0.3106,2671.3,2671.2,3.74363]
[1739223373258,0.3106,2671.6,2671.1,1.25418726]
[1739223373460,0.3106,2671.6,2671.5,3.74321]
[1739223373860,0.3106,2671.6,2671.4,3.74335]
[1739223374856,0.3106,2671.6,2671.4,3.74329]
[1739223376153,0.3106,2671.6,2671.5,3.74321]
[1739223377254,0.3106,2671.6,2671.4,3.74331]
[1739223379088,4.05378,2671.6,2671.1,3.74375]
[1739223379794,4.05378,2671.6,2671.1,3.74368]
[1739223379995,0.3106,2671.6,2671.3,3.74342]
[1739223380559,0.3106,2671.6,2671.4,3.74328]
[1739223380758,0.3106,2671.6,2671.2,3.74363]
[1739223380969,0.3106,2671.6,2671.3,3.74345]
[1739223383301,0.3106,2671.6,2671.3,3.74349]
[1739223383775,0.3106,2671.6,2671.3,3.74342]
[1739223384175,0.3106,2671.6,2671.4,3.74334]
[1739223384371,0.3106,2671.6,2671.3,3.74342]
[1739223385589,0.3106,2671.6,2671.3,3.74341]
[1739223387012,0.3106,2671.6,2671.3,7.48682]
[1739223387379,0.3106,2671.6,2671.3,3.74341]
[1739223387709,0.3106,2671.6,2671.4,3.74332]
[1739223388008,0.3106,2671.6,2671.3,3.74341]
[1739223388180,0.3106,2671.6,2671.3,7.48684]
[1739223388507,0.3106,2671.6,2671.3,3.74341]
[1739223389298,0.3106,2671.6,2671.4,3.74333]
[1739223389680,0.3106,2671.6,2671.3,3.74341]
[1739223390115,0.3106,2671.9,2671.2,0.7592]
[1739223390317,0.3106,2672.2,2671.8,3.74279]
[1739223391308,4.05284,2672.2,2671.7,3.74291]
[1739223392424,5.30702726,2672.2,2671.7,3.74291]
[1739223394113,3.74238,2672.1,2671.7,3.74291]
[1739223395412,1.56478726,2672.2,2671.7,3.74291]
[1739223395616,5.30707726,2672.2,2671.7,3.74291]
[1739223397141,1.56478726,2672.2,2671.7,3.74291]
[1739223397356,1.25418726,2672.0,2671.4,1.49778587]
[1739223397519,4.99698726,2671.8,2671.3,3.74342]
[1739223398720,3.7428,2671.8,2671.3,3.74342]
[1739223399399,0.3106,2671.9,2671.6,3.74298]
[1739223399767,3.74245,2672.1,2671.7,3.74291]
[1739223399983,4.05305,2672.1,2671.7,3.74291]
[1739223400843,3.74252,2672.0,2671.5,0.7592]
[1739223401044,3.74252,2672.0,2671.6,3.74306]
[1739223401856,4.05298,2672.1,2671.6,3.74306]
[1739223402958,3.74252,2672.0,2671.6,3.74306]
[1739223403357,0.3106,2672.1,2671.6,3.74306]
[1739223403558,0.3106,2672.1,2671.9,3.74265]
[1739223403738,0.3106,2672.1,2671.8,3.7427]
[1739223404361,0.3106,2672.1,2671.7,3.74286]
[1739223406178,0.3106,2672.1,2671.7,3.74293]
[1739223406761,4.05298,2672.1,2671.7,3.74293]
[1739223408856,0.3106,2672.1,2671.7,7.48578]
[1739223409065,0.3106,2672.1,2671.7,3.725766]
[1739223411571,0.3106,2672.1,2671.5,4.5023]
[1739223411727,4.05303,2672.1,2671.6,3.743]
[1739223413067,0.3106,2672.1,2671.6,3.743]
[1739223413581,4.05299,2672.1,2671.7,3.74293]
[1739223414980,0.3106,2672.1,2671.7,3.74293]
[1739223415881,4.05299,2672.1,2671.7,3.74293]
[1739223416385,0.3106,2672.1,2671.7,3.74293]
[1739223416869,4.05298,2672.1,2671.7,3.74293]
[1739223417069,0.3106,2672.1,2671.7,3.74293]
[1739223419882,0.30889377,2672.1,2671.7,3.74293]
[1739223420183,4.05126377,2672.1,2671.7,3.74293]
[1739223420487,4.99647726,2672.2,2671.6,7.48595]
[1739223420782,4.99647726,2672.2,2671.7,3.74292]
[1739223420947,8.73883726,2672.2,2671.7,3.74292]
[1739223421350,4.99647726,2672.2,2671.7,3.74292]
[1739223421774,1.25418726,2672.2,2671.5,0.7592]
[1739223422084,4.99643726,2672.2,2671.8,3.74274]
[1739223422292,4.99643726,2672.2,2671.6,3.74297]
[1739223422466,3.74239,2672.1,2671.7,3.74292]
[1739223423257,4.99646726,2672.2,2671.7,3.74292]
[1739223424508,3.74238,2672.1,2671.7,3.74292]
[1739223425911,3.74238,2672.1,2671.5,4.50238]
[1739223425912,3.74254,2672.0,2671.6,3.74305]
[1739223426412,4.99672726,2672.0,2671.6,3.74305]
[1739223427616,3.74238,2672.1,2671.7,3.74288]
[1739223428466,1.25418726,2672.2,2671.7,3.74288]
[1739223428667,4.99653726,2672.2,2671.7,3.74288]
[1739223428868,3.74221,2672.3,2671.8,3.74265]
[1739223429091,7.48442,2672.3,2671.8,3.74272]
[1739223429269,3.74224,2672.2,2671.8,3.74272]
[1739223429466,3.74221,2672.3,2671.8,3.74273]
[1739223429715,3.74221,2672.3,2671.7,7.4857]
[1739223429928,3.7423,2672.2,2671.7,3.74285]
[1739223430088,3.74238,2672.1,2671.7,3.74285]
[1739223434221,3.74254,2672.0,2671.5,0.7592]
[1739223434423,3.74254,2672.0,2671.5,4.50237]
[1739223436626,3.74254,2672.0,2671.5,3.74317]
[1739223436780,3.74267,2671.9,2671.4,3.74332]
[1739223437238,3.74267,2671.9,2670.9,0.8318]
[1739223437239,1.25418726,2671.5,2670.9,0.8318]
[1739223437497,3.74381,2671.1,2670.7,0.8318]
[1739223437699,3.74381,2671.1,2670.6,4.51139289]
[1739223437994,1.25418726,2671.2,2670.6,0.76693289]
[1739223438198,1.25418726,2671.4,2670.8,3.74418]
[1739223438362,4.99736726,2671.6,2671.0,3.7439]
[1739223438566,3.74302,2671.7,2671.2,3.74353]
[1739223438796,1.25418726,2671.8,2671.2,3.74353]
[1739223438995,3.743,2671.7,2671.2,3.74353]
[1739223439497,4.99676726,2672.0,2671.2,0.8318]
[1739223439704,3.7428,2671.8,2671.3,3.74348]
[1739223440201,3.7428,2671.8,2671.3,3.74342]
[1739223441042,3.7428,2671.8,2671.2,0.8318]
[1739223441248,3.74294,2671.7,2671.2,4.57535]
[1739223441449,3.7428,2671.8,2671.2,4.57535]
[1739223441650,3.74298,2671.7,2671.2,4.57535]
[1739223443007,3.74298,2671.7,2671.2,0.8318]
[1739223443494,3.74282,2671.8,2671.3,3.74341]
[1739223444092,7.4857,2671.8,2671.3,3.74341]
[1739223444300,7.48572,2671.8,2671.3,3.74341]
[1739223444496,3.74282,2671.8,2671.3,3.74341]
[1739223444834,1.2514763,2672.8,2671.6,4.54064]
[1739223444835,2.50765734,2672.5,2671.6,4.54064]
[1739223445098,3.74223,2672.3,2671.7,3.74281]
[1739223445602,3.01663364,2672.8,2671.7,0.03742705]
[1739223445895,3.0,2672.7,2672.2,3.74219]
[1739223446053,3.0,2672.7,2672.0,8.28503]
[1739223446054,6.74157,2672.7,2672.0,8.28503]
[1739223446388,3.74171,2672.6,2672.0,4.54259]
[1739223447291,3.74196,2672.4,2672.0,4.54259]
[1739223447797,3.74182,2672.5,2672.0,4.54259]
[1739223449185,3.74195,2672.4,2672.0,0.8002]
[1739223449785,2.50765734,2672.2,2671.4,4.54346]
[1739223449989,2.50765734,2672.2,2671.2,9.13357]
[1739223449990,3.74254,2672.0,2671.3,3.74337]
[1739223450198,3.74281,2671.8,2671.3,3.74337]
[1739223450562,7.4857,2671.8,2671.3,3.74337]
[1739223450775,3.74281,2671.8,2671.3,3.74337]
[1739223451200,3.7426,2672.0,2671.2,4.54377]
[1739223451410,3.7426,2672.0,2671.3,3.74339]
[1739223451705,3.74267,2671.9,2671.4,3.74328]
[1739223451905,3.74287,2671.8,2671.3,3.74339]
[1739223453062,3.74256,2672.0,2671.4,3.74323]
[1739223453379,3.74279,2671.8,2671.3,3.74339]
[1739223453989,3.74256,2672.0,2671.3,3.74339]
[1739223454282,3.74256,2672.0,2671.4,3.74326]
[1739223454816,3.74265,2671.9,2671.4,3.74326]
[1739223455882,3.74256,2672.0,2671.4,3.74326]
[1739223456386,3.7428,2671.8,2671.4,3.74326]
[1739223456881,3.74307,2671.6,2671.2,0.8002]
[1739223457081,7.48627,2671.6,2671.2,0.8002]
[1739223457302,7.48628,2671.6,2671.2,0.8002]
[1739223457499,3.74307,2671.6,2671.2,0.8002]
[1739223458118,3.74307,2671.6,2671.2,4.54381]
[1739223458285,3.74294,2671.7,2671.2,4.54381]
[1739223459015,3.74294,2671.7,2671.2,8.28737]
[1739223459200,3.74285,2671.8,2671.2,4.54376]
[1739223459406,3.74285,2671.8,2671.3,3.74349]
[1739223460222,3.74277,2671.9,2671.5,0.8002]
[1739223460419,3.74255,2672.0,2671.5,0.8002]
[1739223460619,3.74273,2671.9,2671.5,0.8002]
[1739223461236,3.74286,2671.8,2671.5,0.8002]
[1739223463978,3.74271,2671.9,2671.5,0.8002]
[1739223464581,7.48522,2672.0,2671.5,4.54337]
[1739223464777,3.74272,2671.9,2671.5,0.8002]
[1739223465029,6.24992734,2672.2,2671.5,0.8002]
[1739223465492,3.74297,2671.7,2671.5,0.8002]
[1739223468715,7.48602,2671.7,2671.5,0.8002]
[1739223468922,3.74297,2671.7,2671.5,0.8002]
[1739223470642,3.74274,2671.9,2671.5,0.8002]
[1739223470990,3.74285,2671.8,2671.5,0.8002]
[1739223472538,3.74274,2671.9,2671.5,0.8002]
[1739223472690,3.7428,2671.8,2671.5,0.8002]
[1739223472897,3.74296,2671.7,2671.5,0.8002]
[1739223474393,3.74313,2671.6,2671.2,0.7665]
[1739223475751,3.74296,2671.7,2671.2,4.51012]
[1739223476264,7.48598,2671.7,2671.2,4.51012]
[1739223476761,3.7429,2671.8,2671.3,3.74347]
[1739223477061,3.7429,2671.8,2671.4,0.7665]
[1739223478163,3.74321,2671.5,2671.4,0.7665]
[1739223478361,1.25390109,2671.8,2671.1,9.13366]
[1739223478362,3.74308,2671.6,2671.2,0.7665]
[1739223478664,3.74268,2671.9,2671.6,0.7665]
[1739223478885,4.99647109,2672.0,2671.6,0.7665]
[1739223479582,3.74268,2671.9,2671.6,0.7665]
[1739223479776,3.74265,2671.9,2671.6,0.7665]
[1739223480290,3.74289,2671.8,2671.6,0.7665]
[1739223480579,3.74265,2671.9,2671.6,0.7665]
[1739223480964,3.74279,2671.8,2671.6,0.7665]
[1739223481390,3.74265,2671.9,2671.6,0.7665]
[1739223481682,3.74323,2671.5,2671.3,0.7665]
[1739223485390,3.74335,2671.4,2671.0,0.7661]
[1739223485777,3.74323,2671.5,2671.0,4.50993]
[1739223487320,3.74345,2671.4,2671.0,0.7661]
[1739223488264,3.74349,2671.3,2671.0,0.7661]
[1739223488801,3.74335,2671.4,2671.0,0.7661]
[1739223489105,3.74358,2671.3,2671.0,0.7661]
[1739223492497,3.74338,2671.4,2671.0,0.7661]
[1739223492692,3.74358,2671.3,2671.0,0.7661]
[1739223493395,3.74338,2671.4,2671.0,0.7661]
[1739223493605,3.74359,2671.3,2671.0,0.7661]
[1739223493800,3.74338,2671.4,2671.0,0.7661]
[1739223494174,3.7435,2671.3,2671.0,0.7661]
[1739223495208,3.74369,2671.2,2670.8,5.39]
[1739223495414,3.74369,2671.2,2670.9,0.7661]
[1739223495630,3.74293,2671.7,2670.9,0.7661]
[1739223495916,3.74391,2671.0,2670.9,0.7661]
[1739223496078,3.74375,2671.2,2670.9,0.7661]
[1739223496486,3.74391,2671.0,2670.6,0.7661]
[1739223496687,3.74414,2670.9,2670.6,0.7661]
[1739223496893,3.74391,2671.0,2670.4,0.7661]
[1739223496894,3.74424,2670.8,2670.4,0.7661]
[1739223497097,3.74402,2671.0,2670.4,4.51083]
[1739223497539,3.74417,2670.9,2670.4,4.51083]
[1739223497716,3.74402,2671.0,2670.5,3.74458]
[1739223497912,2.50840191,2671.2,2670.5,3.74458]
[1739223498105,3.74377,2671.1,2670.5,7.48909]
[1739223498412,3.74407,2670.9,2670.5,3.74451]
[1739223498612,3.74379,2671.1,2670.5,3.74451]
[1739223498783,3.74395,2671.0,2670.5,3.74451]
[1739223499620,3.74379,2671.1,2670.5,3.74451]
[1739223499911,6.25205191,2671.2,2670.4,0.7661]
[1739223500306,3.74377,2671.1,2670.4,0.7661]
[1739223500479,3.74442,2670.7,2670.4,0.7661]
[1739223500681,3.74441,2670.7,2670.4,0.7661]
[1739223501725,3.74414,2670.9,2670.4,4.51077]
[1739223502110,7.4883,2670.9,2670.4,4.51077]
[1739223502937,3.74429,2670.8,2670.4,0.7661]
[1739223504210,7.48857,2670.8,2670.4,0.7661]
[1739223504425,3.74428,2670.8,2670.4,0.7661]
[1739223504932,3.74398,2671.0,2670.4,4.51084]
[1739223505097,3.74414,2670.9,2670.4,4.51084]
[1739223505430,2.50840191,2671.2,2670.4,0.7661]
[1739223505600,3.74422,2670.8,2670.4,0.7661]
[1739223506000,3.74434,2670.7,2670.4,0.7661]
[1739223506415,3.7441,2670.9,2670.4,4.51082]
[1739223506612,3.74421,2670.8,2670.4,0.7661]
[1739223507324,7.48849,2670.8,2670.4,0.7661]
[1739223507518,3.74397,2671.0,2670.4,0.7661]
[1739223507716,3.74407,2670.9,2670.4,4.51079]
[1739223508118,3.74422,2670.8,2670.4,0.7661]
[1739223508612,7.48824,2670.9,2670.4,4.51082]
[1739223508813,3.74424,2670.8,2670.4,0.7661]
[1739223510228,7.48822,2670.9,2670.4,4.5108]
[1739223510416,3.74407,2670.9,2670.4,4.5108]
[1739223510618,7.48822,2670.9,2670.4,3.7447]
[1739223510793,3.74421,2670.8,2670.5,0.8078]
[1739223510991,3.74437,2670.7,2670.5,0.8078]
[1739223512734,3.74412,2670.9,2670.5,0.8078]
[1739223513435,3.74421,2670.8,2670.5,0.8078]
[1739223513724,7.48851,2670.8,2670.5,0.8078]
[1739223513932,3.74421,2670.8,2670.5,0.8078]
[1739223514110,7.48849,2670.8,2670.5,0.8078]
[1739223514310,3.74421,2670.8,2670.5,0.8078]
[1739223514510,7.48849,2670.8,2670.5,0.8078]
[1739223514711,3.74421,2670.8,2670.5,0.8078]
[1739223515304,3.74433,2670.7,2670.5,0.8078]
[1739223518132,3.74435,2670.7,2670.5,0.8078]
[1739223518508,3.74395,2671.0,2670.5,0.8078]
[1739223518709,6.25918191,2671.5,2670.6,3.74446]
[1739223518911,3.74341,2671.4,2670.9,3.74403]
[1739223519101,3.74359,2671.3,2670.8,4.55199]
[1739223519431,3.74333,2671.5,2671.0,0.8078]
[1739223519634,3.74295,2671.7,2671.0,4.55164]
[1739223519799,3.74258,2672.0,2671.0,0.8078]
[1739223520002,3.74297,2671.7,2671.4,0.8078]
[1739223520534,3.74271,2671.9,2671.4,0.8078]
[1739223520838,3.74288,2671.8,2671.4,0.8078]
[1739223521256,3.74295,2671.7,2671.4,0.8078]
[1739223522228,3.74268,2671.9,2671.4,0.8078]
[1739223522634,6.25086191,2672.1,2671.4,4.55102]
[1739223522836,3.74252,2672.0,2671.6,0.8078]
[1739223523057,7.48497,2672.1,2671.6,0.8078]
[1739223523207,3.74263,2672.0,2671.6,0.8078]
[1739223524548,3.74246,2672.1,2671.6,0.8078]
[1739223524854,3.74259,2672.0,2671.6,0.8078]
[1739223526553,3.74246,2672.1,2671.6,0.8078]
[1739223526739,3.74246,2672.1,2671.6,4.55079]
[1739223527055,3.74253,2672.0,2671.6,0.8078]
[1739223528369,3.74253,2672.0,2671.6,4.55086]
[1739223528560,3.74252,2672.0,2671.6,4.55086]
[1739223528761,3.74252,2672.0,2671.6,0.8078]
[1739223529073,7.48516,2672.0,2671.6,0.8078]
[1739223529396,7.48513,2672.0,2671.6,0.8078]
[1739223529793,3.0,2672.3,2671.6,0.8078]
[1739223529957,3.74242,2672.1,2671.6,0.8078]
[1739223530162,3.74259,2672.0,2671.6,0.8078]
[1739223532710,3.74242,2672.1,2671.6,0.8078]
[1739223532910,3.74272,2671.9,2671.6,0.8078]
[1739223533110,3.74258,2672.0,2671.6,0.8078]
[1739223533295,3.74251,2672.0,2671.6,0.8078]
[1739223534028,3.74267,2671.9,2671.6,0.8078]
[1739223535922,3.74247,2672.1,2671.6,0.8078]
[1739223536131,3.74252,2672.0,2671.6,0.8078]
[1739223538231,3.74268,2671.9,2671.6,0.8078]
[1739223538406,3.74251,2672.0,2671.6,0.8078]
[1739223538999,3.74269,2671.9,2671.6,0.8078]
[1739223540433,3.74298,2671.7,2671.4,0.763]
[1739223540606,3.74276,2671.9,2671.4,4.50628]
[1739223540930,3.74276,2671.9,2671.5,0.763]
[1739223541404,3.74276,2671.9,2671.5,4.50615]
[1739223541598,3.74276,2671.9,2671.5,0.763]
[1739223542016,3.74276,2671.9,2671.5,4.50621]
[1739223542215,3.74247,2672.1,2671.6,0.763]
[1739223542417,3.74259,2672.0,2671.6,0.763]
[1739223542803,3.74237,2672.1,2671.6,4.50599]
[1739223543435,9.09156,2672.7,2672.1,3.74232]
[1739223543611,3.74125,2672.9,2671.9,5.42742302]
[1739223543811,3.7416,2672.7,2672.2,3.74222]
[1739223544204,7.35285309,2673.3,2672.6,3.74153]
[1739223544402,3.74079,2673.3,2672.7,4.50446]
[1739223544633,7.48157,2673.3,2672.7,4.50446]
[1739223544942,3.74078,2673.3,2672.8,3.74135]
[1739223545330,3.74084,2673.2,2672.7,4.5045]
[1739223546203,3.74078,2673.3,2672.7,4.5045]
[1739223548626,7.48156,2673.3,2672.7,4.5045]
[1739223548826,3.74078,2673.3,2672.7,4.5045]
[1739223549764,7.48157,2673.3,2672.7,4.5045]
[1739223550445,6.7405,2673.5,2672.7,0.763]
[1739223550619,2.95,2673.5,2672.8,3.74129]
[1739223550819,3.74077,2673.3,2672.8,3.74129]
[1739223551617,7.48154,2673.3,2672.8,3.74129]
[1739223551819,3.74077,2673.3,2672.8,3.74129]
[1739223552230,7.48157,2673.3,2672.8,3.74129]
[1739223552533,3.74084,2673.2,2672.7,0.763]
[1739223552733,3.74084,2673.2,2672.7,4.50453]
[1739223553252,3.74084,2673.2,2672.7,0.763]
[1739223553455,3.74109,2673.1,2672.7,0.763]
[1739223554345,7.48214,2673.1,2672.7,0.763]
[1739223554546,3.74112,2673.0,2672.7,0.763]
[1739223555052,3.74127,2672.9,2672.7,0.763]
[1739223555239,3.74127,2672.9,2672.3,0.7938]
[1739223555240,3.74148,2672.8,2672.3,0.7938]
[1739223555756,7.48263,2672.9,2672.3,4.53575]
[1739223555962,7.4826,2672.9,2672.3,4.53575]
[1739223556146,3.74141,2672.8,2672.3,4.53575]
[1739223557362,7.48264,2672.9,2672.4,3.74194]
[1739223557924,3.74127,2672.9,2672.4,3.74194]
[1739223558239,7.48261,2672.9,2672.4,3.74194]
[1739223558446,3.74143,2672.8,2672.4,3.74194]
[1739223558667,3.74158,2672.7,2672.3,0.7938]
[1739223559245,3.74158,2672.7,2672.3,4.53588]
[1739223559451,3.74139,2672.8,2672.3,4.53588]
[1739223562260,3.74181,2672.6,2672.3,0.7938]
[1739223562558,3.74192,2672.5,2672.3,0.7938]